bitfinex/quotes_SOLUSD_20241122
["timestamp","ask_amount","ask_price","bid_price","bid_amount"]
[1732267185144,15.10939914,259.04,258.95,2.49999999]
[1732267185552,23.776884,259.03,258.95,2.49999999]
[1732267186748,15.10939914,259.0,258.93,20.0]
[1732267186945,23.776884,258.99,258.93,20.0]
[1732267188023,23.776884,258.99,258.94,2.49999999]
[1732267188220,23.776884,259.01,258.94,2.49999999]
[1732267188644,15.10939914,259.06,258.95,4.99999999]
[1732267188832,15.10939914,259.04,258.95,4.99999999]
[1732267189033,15.10939914,259.04,258.95,2.49999999]
[1732267189925,23.776884,259.03,258.95,2.49999999]
[1732267190445,23.776884,259.03,258.97,20.0]
[1732267190623,23.776884,259.04,258.97,20.0]
[1732267192726,23.776884,259.04,258.97,22.49999999]
[1732267194036,23.776884,259.04,258.97,20.0]
[1732267195328,15.10939914,259.01,258.97,20.0]
[1732267195548,23.776884,258.98,258.96,6.6165]
[1732267195746,15.10939914,258.97,258.93,2.49999999]
[1732267195956,23.776884,258.93,258.92,16.227]
[1732267197259,23.776884,258.93,258.92,36.227]
[1732267200729,15.10939914,259.0,258.93,20.0]
[1732267201352,15.10939914,258.96,258.93,20.0]
[1732267202152,23.776884,258.95,258.93,20.0]
[1732267202381,15.10939914,258.94,258.86,2.49999999]
[1732267202545,15.10939914,258.92,258.86,22.49999999]
[1732267202932,23.776884,258.91,258.86,22.49999999]
[1732267204041,23.776884,258.93,258.86,22.49999999]
[1732267204749,23.776884,258.91,258.85,16.3821]
[1732267204956,23.776884,258.88,258.85,16.3821]
[1732267206455,15.10939914,258.87,258.86,20.0]
[1732267206758,23.776884,258.86,258.78,21.38309999]
[1732267207054,15.10939914,258.96,258.78,21.38309999]
[1732267207055,23.776884,258.84,258.78,21.38309999]
[1732267207245,23.776884,258.84,258.8,2.49999999]
[1732267207627,23.776884,258.86,258.8,2.49999999]
[1732267208034,23.776884,258.86,258.79,20.0]
[1732267208551,23.776884,258.86,258.8,2.49999999]
[1732267210534,23.776884,258.86,258.8,4.99999999]
[1732267210749,15.10939914,258.91,258.84,2.49999999]
[1732267210940,15.10939914,258.86,258.81,2.5]
[1732267211142,15.10939914,258.88,258.81,2.5]
[1732267211336,15.10939914,258.96,258.81,2.5]
[1732267211337,15.10939914,258.9,258.82,2.49999999]
[1732267211557,15.10939914,258.92,258.84,4.99999999]
[1732267212267,15.10939914,258.88,258.8,2.5]
[1732267212446,15.10939914,258.9,258.83,2.49999999]
[1732267212760,15.10939914,258.9,258.79,24.99999999]
[1732267212942,15.10939914,258.88,258.79,24.99999999]
[1732267213253,15.10939914,258.84,258.79,22.5]
[1732267213460,23.776884,258.83,258.79,20.0]
[1732267217735,15.10939914,258.82,258.78,16.3831]
[1732267218062,23.776884,258.79,258.72,2.5]
[1732267218260,23.776884,258.74,258.72,2.5]
[1732267218644,23.776884,258.76,258.72,2.5]
[1732267219047,23.776884,258.8,258.72,4.99999999]
[1732267219246,23.776884,258.8,258.72,24.99999999]
[1732267219666,23.776884,258.8,258.74,2.5]
[1732267219860,23.776884,258.8,258.74,4.99999999]
[1732267220065,13.7383,258.94,258.76,4.99999999]
[1732267220371,15.10939914,258.87,258.76,4.99999999]
[1732267220872,15.10939914,258.87,258.78,2.49999999]
[1732267221170,15.10939914,258.87,258.78,4.99999999]
[1732267221552,23.776884,258.86,258.78,4.99999999]
[1732267222266,23.776884,258.86,258.8,4.99999999]
[1732267222749,15.10939914,258.87,258.8,4.99999999]
[1732267224068,23.776884,258.86,258.8,4.99999999]
[1732267225154,23.776884,258.86,258.8,2.49999999]
[1732267225865,23.776884,258.86,258.79,20.0]
[1732267226079,23.776884,258.84,258.79,22.49999999]
[1732267226367,23.776884,258.85,258.79,20.0]
[1732267227352,23.776884,258.85,258.79,22.49999999]
[1732267227754,23.776884,258.85,258.79,20.0]
[1732267228571,23.776884,258.85,258.79,22.49999999]
[1732267228757,23.776884,258.89,258.81,4.99999999]
[1732267230478,23.776884,258.87,258.81,2.5]
[1732267230649,23.776884,258.87,258.81,4.99999999]
[1732267230850,23.776884,258.87,258.81,2.5]
[1732267231047,23.776884,258.87,258.81,4.99999999]
[1732267231469,15.10939914,258.94,258.87,2.49999999]
[1732267231674,15.10939914,258.96,258.88,2.5]
[1732267232173,15.10939914,258.9,258.71,16.2291]
[1732267232409,15.10939914,258.77,258.71,16.2291]
[1732267232556,15.10939914,258.79,258.71,18.72909999]
[1732267232871,23.776884,258.78,258.73,2.5]
[1732267233177,23.776884,258.78,258.71,18.72909999]
[1732267233375,23.776884,258.78,258.73,2.5]
[1732267233549,23.776884,258.78,258.71,18.72909999]
[1732267233550,23.776884,258.78,258.76,2.49999999]
[1732267233746,15.10939914,258.84,258.81,137.0]
[1732267233946,15.10939914,258.84,258.78,2.49999999]
[1732267234468,15.10939914,258.86,258.79,2.5]
[1732267234669,15.10939914,258.86,258.79,2.49999999]
[1732267234971,23.776884,258.85,258.79,2.49999999]
[1732267235172,23.776884,258.85,258.8,2.5]
[1732267236179,15.10939914,258.9,258.83,22.49999999]
[1732267237265,23.776884,258.89,258.83,22.49999999]
[1732267237775,23.776884,258.89,258.83,20.0]
[1732267237776,15.10939914,258.88,258.83,20.0]
[1732267237975,23.776884,258.87,258.83,20.0]
[1732267240974,15.10939914,258.86,258.83,20.0]
[1732267241160,23.776884,258.83,258.8,6.037]
[1732267241365,23.776884,258.83,258.78,2.5]
[1732267241676,23.776884,258.83,258.8,4.99999999]
[1732267242060,23.776884,258.83,258.78,4.99999999]
[1732267242260,23.776884,258.83,258.8,4.99999999]
[1732267242781,23.776884,258.83,258.82,2.49999999]
[1732267243779,23.776884,258.83,258.82,4.99999999]
[1732267244081,15.10939914,258.93,258.91,20.0]
[1732267244578,15.10939914,258.93,258.9,2.5]
[1732267245281,23.776884,258.92,258.88,2.49999999]
[1732267245474,23.776884,258.92,258.9,2.5]
[1732267246074,23.776884,258.92,258.91,2.49999999]
[1732267246275,15.10939914,258.93,258.91,2.49999999]
[1732267246473,15.10939914,258.95,258.91,2.49999999]
[1732267246686,15.10939914,258.95,258.93,2.49999999]
[1732267247083,13.7383,259.07,258.95,2.49999999]
[1732267247425,15.10939914,259.0,258.95,2.49999999]
[1732267247563,15.10939914,258.98,258.97,2.49999999]
[1732267247759,15.10939914,259.0,258.97,4.99999999]
[1732267247961,15.10939914,259.02,258.99,2.5]
[1732267249490,23.776884,259.01,258.99,2.5]
[1732267250084,15.417372,259.15,258.96,15.5684]
[1732267250085,15.10939914,259.06,259.03,2.49999999]
[1732267250270,15.10939914,259.06,259.01,2.5]
[1732267250463,15.10939914,259.04,259.01,4.99999999]
[1732267250863,29.152945,259.2,259.04,2.49999999]
[1732267251070,15.10939914,259.06,259.02,2.49999999]
[1732267251682,15.10939914,259.06,259.04,2.49999999]
[1732267251987,15.10939914,259.08,259.04,2.49999999]
[1732267252290,13.7383,259.2,259.04,4.99999999]
[1732267252291,15.10939914,259.1,259.04,4.99999999]
[1732267252789,15.10939914,259.1,259.06,2.49999999]
[1732267253484,23.776884,259.09,259.06,2.49999999]
[1732267254071,15.10939914,259.08,259.06,2.49999999]
[1732267254381,15.10939914,259.08,259.04,2.5]
[1732267254382,23.776884,259.07,259.04,2.5]
[1732267254566,23.776884,259.07,258.98,6.2549]
[1732267254567,23.776884,259.04,258.98,8.75489999]
[1732267254770,23.776884,259.02,258.99,2.5]
[1732267255272,23.776884,259.02,259.01,2.49999999]
[1732267255489,23.776884,259.02,258.99,2.5]
[1732267255870,23.776884,259.02,258.99,22.5]
[1732267256070,23.776884,259.02,258.99,20.0]
[1732267258490,23.776884,259.02,259.01,2.5]
[1732267258793,23.776884,259.02,259.0,20.0]
[1732267259098,23.776884,259.02,258.99,20.0]
[1732267259272,23.776884,259.0,258.97,20.0]
[1732267259600,15.10939914,258.99,258.96,15.5684]
[1732267259774,15.10939914,258.97,258.93,2.5]
[1732267260096,23.776884,258.96,258.93,2.5]
[1732267260387,23.776884,258.94,258.93,4.99999999]
[1732267261086,23.776884,258.94,258.93,2.49999999]
[1732267263468,15.10939914,258.99,258.93,2.49999999]
[1732267263669,15.10939914,259.01,258.99,2.49999999]
[1732267263971,15.10939914,259.03,258.99,2.49999999]
[1732267265493,23.776884,259.02,258.99,2.49999999]
[1732267267485,23.776884,259.0,258.97,2.49999999]
[1732267267689,23.776884,259.0,258.97,2.5]
[1732267267874,23.776884,259.0,258.96,2.49999999]
[1732267267875,23.776884,258.98,258.96,2.49999999]
[1732267268195,23.776884,258.98,258.94,2.5]
[1732267268700,23.776884,258.96,258.92,2.5]
[1732267269373,23.776884,258.94,258.9,16.1086]
[1732267269699,23.776884,258.94,258.9,18.6086]
[1732267270099,23.776884,258.94,258.9,16.1086]
[1732267270302,15.10939914,258.91,258.86,4.99999999]
[1732267270474,23.776884,258.9,258.86,2.5]
[1732267270873,23.776884,258.9,258.85,2.49999999]
[1732267271088,23.776884,258.9,258.86,2.5]
[1732267271800,23.776884,258.9,258.87,2.49999999]
[1732267272202,23.776884,258.9,258.86,2.5]
[1732267272791,23.776884,258.9,258.87,2.49999999]
[1732267273577,23.776884,258.92,258.91,4.99999999]
[1732267275387,23.776884,258.92,258.91,2.49999999]
[1732267275591,15.10939914,258.97,258.96,137.0]
[1732267275776,15.10939914,258.97,258.94,2.49999999]
[1732267275982,15.10939914,258.95,258.92,2.49999999]
[1732267276181,15.10939914,258.95,258.93,2.5]
[1732267276791,15.10939914,258.95,258.92,2.49999999]
[1732267277095,23.776884,258.94,258.93,2.5]
[1732267277593,23.776884,258.94,258.92,2.49999999]
[1732267277794,23.776884,258.94,258.93,2.5]
[1732267278001,23.776884,258.94,258.92,2.49999999]
[1732267278198,23.776884,258.94,258.93,2.5]
[1732267280091,23.776884,258.96,258.93,2.5]
[1732267281683,23.776884,258.96,258.92,2.49999999]
[1732267282003,23.776884,258.94,258.92,2.49999999]
[1732267285411,23.776884,258.94,258.93,2.5]
[1732267286408,23.776884,258.96,258.92,2.49999999]
[1732267286609,15.10939914,258.93,258.91,10.0]
[1732267286800,23.776884,258.92,258.91,10.0]
[1732267287711,23.776884,258.92,258.91,12.49999999]
[1732267288212,23.776884,258.92,258.91,34.99999999]
[1732267288411,23.776884,258.92,258.91,32.49999999]
[1732267288594,23.776884,258.92,258.91,34.99999999]
[1732267288795,23.776884,258.92,258.91,32.49999999]
[1732267289003,15.10939914,258.99,258.96,2.5]
[1732267289200,15.10939914,259.03,258.97,4.99999999]
[1732267289793,15.10939914,259.03,259.0,2.49999999]
[1732267290016,15.10939914,259.03,259.0,4.99999999]
[1732267290395,15.10939914,259.03,258.98,2.49999999]
[1732267291016,15.10939914,259.03,258.97,2.5]
[1732267291017,23.776884,259.0,258.97,2.49999999]
[1732267291725,23.776884,259.0,258.97,2.5]
[1732267292009,23.776884,258.98,258.97,2.5]
[1732267292721,23.776884,258.98,258.92,2.5]
[1732267292907,15.10939914,258.94,258.92,2.5]
[1732267293217,23.776884,258.93,258.92,2.5]
[1732267293595,23.776884,258.93,258.9,2.5]
[1732267295215,23.776884,258.93,258.92,2.5]
[1732267298329,23.776884,258.93,258.91,2.5]
[1732267298510,23.776884,258.93,258.92,2.5]
[1732267299221,23.776884,258.93,258.9,2.49999999]
[1732267299426,23.776884,258.93,258.92,2.5]
[1732267300210,23.776884,258.93,258.9,2.5]
[1732267300414,23.776884,258.93,258.91,2.5]
[1732267301313,23.776884,258.93,258.88,22.49999999]
[1732267301516,15.10939914,258.9,258.85,2.5]
[1732267301710,23.776884,258.89,258.84,4.99999999]
[1732267302137,15.10939914,258.88,258.84,2.5]
[1732267302522,23.776884,258.87,258.84,4.99999999]
[1732267303108,23.776884,258.87,258.84,2.5]
[1732267303313,23.776884,258.87,258.84,4.99999999]
[1732267303812,15.10939914,258.86,258.84,2.5]
[1732267304021,23.776884,258.85,258.8,2.5]
[1732267304329,15.10939914,258.83,258.8,2.5]
[1732267304535,23.776884,258.82,258.8,2.5]
[1732267305033,23.776884,258.82,258.81,2.5]
[1732267305233,23.776884,258.82,258.78,2.5]
[1732267305438,23.776884,258.8,258.75,18.78549999]
[1732267305730,23.776884,258.8,258.78,2.5]
[1732267305935,23.776884,258.8,258.76,2.49999999]
[1732267306135,23.776884,258.8,258.78,4.99999999]
[1732267306639,23.776884,258.82,258.78,4.99999999]
[1732267308823,23.776884,258.82,258.81,2.5]
[1732267311318,15.10939914,258.85,258.79,2.5]
[1732267311319,23.776884,258.84,258.79,2.5]
[1732267311518,15.10939914,258.81,258.77,2.5]
[1732267311833,23.776884,258.8,258.78,2.49999999]
[1732267312045,23.776884,258.8,258.79,2.5]
[1732267313124,23.776884,258.8,258.78,2.49999999]
[1732267313321,23.776884,258.8,258.79,2.5]
[1732267314241,23.776884,258.8,258.77,2.5]
[1732267314633,13.7383,258.8,258.71,7.67619085]
[1732267314834,15.10939914,258.72,258.68,2.5]
[1732267315138,23.776884,258.69,258.68,2.5]
[1732267315438,23.776884,258.76,258.71,4.99999999]
[1732267315625,23.776884,258.74,258.71,2.5]
[1732267316243,23.776884,258.74,258.71,4.99999999]
[1732267316845,23.776884,258.86,258.78,98.11371686]
[1732267317019,15.10939914,258.78,258.75,2.49999999]
[1732267317219,15.10939914,258.76,258.73,2.5]
[1732267317449,15.10939914,258.74,258.69,2.5]
[1732267317920,15.10939914,258.74,258.67,2.5]
[1732267318423,15.10939914,258.72,258.67,2.5]
[1732267318822,15.10939914,258.72,258.69,2.5]
[1732267320237,23.776884,258.71,258.69,2.5]
[1732267320740,23.776884,258.71,258.66,2.49999999]
[1732267320950,23.776884,258.71,258.65,2.5]
[1732267321254,15.10939914,258.7,258.65,2.5]
[1732267322041,18.97289914,258.83,258.68,4.99999999]
[1732267322042,15.10939914,258.72,258.68,4.99999999]
[1732267322349,23.776884,258.73,258.69,2.5]
[1732267323146,23.776884,258.73,258.53,2.5]
[1732267323147,23.776884,258.75,258.73,2.5]
[1732267323643,15.10939914,258.78,258.75,4.99999999]
[1732267323833,15.10939914,258.8,258.75,4.99999999]
[1732267324030,15.10939914,258.8,258.75,2.5]
[1732267324352,15.10939914,258.77,258.72,2.49999999]
[1732267324646,15.10939914,258.79,258.76,2.5]
[1732267325646,15.10939914,258.79,258.73,2.49999999]
[1732267325647,15.10939914,258.79,258.77,2.5]
[1732267327458,15.10939914,258.79,258.75,2.5]
[1732267328033,15.10939914,258.77,258.73,2.5]
[1732267329058,15.10939914,258.77,258.74,2.49999999]
[1732267330342,15.10939914,258.79,258.76,2.49999999]
[1732267330541,15.10939914,258.79,258.77,2.5]
[1732267330750,15.10939914,258.79,258.76,2.49999999]
[1732267330947,15.10939914,258.81,258.8,2.5]
[1732267331251,15.10939914,258.83,258.78,2.5]
[1732267331552,15.10939914,258.81,258.78,2.5]
[1732267332652,15.10939914,258.81,258.78,4.99999999]
[1732267333050,15.10939914,258.83,258.82,2.49999999]
[1732267333351,15.10939914,258.85,258.82,2.49999999]
[1732267333545,15.10939914,258.85,258.82,4.99999999]
[1732267333950,15.10939914,258.85,258.82,2.49999999]
[1732267334456,15.10939914,258.85,258.83,2.5]
[1732267334753,15.10939914,258.85,258.82,2.49999999]
[1732267334954,15.10939914,258.87,258.85,2.49999999]
[1732267335253,6.2594,258.98,258.72,16.0204]
[1732267335254,15.10939914,258.91,258.87,2.49999999]
[1732267336158,15.10939914,258.91,258.86,2.5]
[1732267336455,15.10939914,258.93,258.89,4.99999999]
[1732267336648,15.10939914,258.95,258.91,4.99999999]
[1732267337053,15.10939914,258.95,258.93,2.5]
[1732267337846,15.10939914,258.97,258.96,2.49999999]
[1732267338049,15.10939914,258.99,258.96,4.99999999]
[1732267338261,6.3421,259.1,259.03,121.89060086]
[1732267338558,15.10939914,259.04,259.0,4.99999999]
[1732267338761,15.10939914,259.04,259.02,2.5]
[1732267339061,15.10939914,259.02,258.97,2.49999999]
[1732267339273,15.10939914,259.09,258.99,2.5]
[1732267339453,15.10939914,259.0,258.99,2.5]
[1732267340038,15.10939914,259.01,258.98,2.5]
[1732267340464,15.10939914,259.01,258.96,2.5]
[1732267340465,23.776884,259.0,258.96,2.5]
[1732267340663,15.10939914,258.97,258.95,20.0]
[1732267340960,15.10939914,259.01,258.99,2.49999999]
[1732267341261,15.10939914,259.02,258.99,4.99999999]
[1732267341462,15.10939914,259.0,258.99,2.5]
[1732267341764,15.10939914,259.0,258.95,20.0]
[1732267341948,15.10939914,258.96,258.94,2.5]
[1732267342152,15.10939914,258.96,258.91,2.5]
[1732267342346,15.10939914,258.94,258.91,2.5]
[1732267342552,15.10939914,258.92,258.91,2.5]
[1732267343044,15.10939914,258.92,258.88,18.7727]
[1732267343541,15.10939914,258.9,258.86,2.5]
[1732267343739,15.10939914,258.9,258.88,2.5]
[1732267343946,15.10939914,258.9,258.86,2.5]
[1732267344346,15.10939914,258.9,258.89,2.5]
[1732267345441,15.10939914,258.92,258.89,2.5]
[1732267345967,23.776884,258.91,258.89,2.5]
[1732267348766,23.776884,258.91,258.87,2.5]
[1732267348963,23.776884,258.91,258.85,2.5]
[1732267349161,15.10939914,258.88,258.85,2.5]
[1732267349463,23.776884,258.87,258.86,2.5]
[1732267349668,23.776884,258.91,258.89,2.49999999]
[1732267350368,23.776884,258.91,258.9,2.5]
[1732267350865,23.776884,258.93,258.9,2.5]
[1732267351364,23.776884,258.93,258.89,2.49999999]
[1732267351567,23.776884,258.93,258.9,2.5]
[1732267352880,23.776884,258.93,258.89,2.49999999]
[1732267353177,23.776884,258.93,258.9,2.5]
[1732267353747,15.10939914,258.94,258.9,2.5]
[1732267353956,15.10939914,258.96,258.93,2.49999999]
[1732267354360,15.10939914,258.98,258.96,2.5]
[1732267354551,15.10939914,259.0,258.96,2.5]
[1732267354770,15.10939914,259.0,258.98,2.5]
[1732267355671,6.403,259.12,259.01,4.99999999]
[1732267355672,15.10939914,259.04,259.01,4.99999999]
[1732267356551,15.10939914,259.04,258.99,4.99999999]
[1732267356747,15.10939914,259.04,258.99,2.49999999]
[1732267356953,23.776884,259.03,258.99,2.49999999]
[1732267357372,15.10939914,259.02,258.98,2.5]
[1732267357751,15.10939914,259.0,258.98,2.5]
[1732267357955,23.776884,258.99,258.96,2.5]
[1732267358771,23.776884,258.99,258.96,4.99999999]
[1732267358951,23.776884,258.97,258.96,4.99999999]
[1732267359146,23.776884,258.97,258.96,2.5]
[1732267360651,15.10939914,258.98,258.96,2.49999999]
[1732267360867,15.10939914,259.0,258.96,4.99999999]
[1732267361051,23.776884,258.99,258.96,4.99999999]
[1732267361254,23.776884,258.99,258.96,2.5]
[1732267361459,23.776884,258.97,258.96,2.5]
[1732267361775,15.10939914,259.0,258.96,4.99999999]
[1732267361954,15.10939914,259.02,258.99,2.5]
[1732267362155,15.10939914,259.02,259.0,2.49999999]
[1732267362979,15.10939914,259.02,259.01,2.5]
[1732267363277,38.88628314,259.02,259.01,2.5]
[1732267363478,23.776884,259.02,259.01,2.5]
[1732267363854,23.776884,259.03,259.01,2.5]
[1732267365268,23.776884,259.03,259.0,19.04779999]
[1732267365457,15.10939914,259.02,259.0,2.49999999]
[1732267366276,23.776884,259.01,258.98,2.49999999]
[1732267366460,23.776884,258.99,258.96,2.49999999]
[1732267366665,15.10939914,258.98,258.96,2.49999999]
[1732267367151,23.776884,258.99,258.96,4.99999999]
[1732267367665,23.776884,258.99,258.98,2.49999999]
[1732267367869,23.776884,258.99,258.98,4.99999999]
[1732267368961,23.776884,259.01,259.0,2.5]
[1732267369170,3.859,259.14,259.0,2.5]
[1732267369171,23.776884,259.03,259.0,4.99999999]
[1732267369471,23.776884,259.03,259.0,2.49999999]
[1732267369669,23.776884,259.03,259.01,2.5]
[1732267370561,20.2264,259.16,259.04,2.49999999]
[1732267370757,15.10939914,259.1,259.06,2.5]
[1732267370962,15.10939914,259.1,259.06,4.99999999]
[1732267371177,15.10939914,259.1,259.04,4.99999999]
[1732267371480,20.2264,259.16,259.06,4.99999999]
[1732267371680,15.10939914,259.1,259.08,2.49999999]
[1732267372090,15.10939914,259.12,259.1,2.49999999]
[1732267372378,15.10939914,259.11,259.09,2.49999999]
[1732267372760,15.10939914,259.15,259.12,2.49999999]
[1732267372969,15.10939914,259.15,259.12,4.99999999]
[1732267373170,15.10939914,259.17,259.12,4.99999999]
[1732267373655,15.10939914,259.17,259.14,4.99999999]
[1732267373858,15.10939914,259.17,259.16,2.5]
[1732267375493,38.88628314,259.17,259.16,2.5]
[1732267376265,15.10939914,259.23,259.21,137.0]
[1732267376584,15.10939914,259.23,259.2,2.49999999]
[1732267377568,23.776884,259.22,259.2,2.49999999]
[1732267377868,38.88628314,259.23,259.22,2.49999999]
[1732267380563,23.776884,259.22,259.19,2.5]
[1732267380766,15.10939914,259.2,259.18,2.49999999]
[1732267381180,15.10939914,259.2,259.16,2.49999999]
[1732267381494,15.10939914,259.17,259.16,4.99999999]
[1732267382467,15.10939914,259.17,259.14,4.99999999]
[1732267382688,15.10939914,259.15,259.14,4.99999999]
[1732267384370,15.10939914,259.15,259.14,2.5]
[1732267384570,15.10939914,259.15,259.12,2.49999999]
[1732267384787,15.10939914,259.15,258.97,5.0]
[1732267384788,23.776884,259.12,259.06,18.85469999]
[1732267384983,15.10939914,259.08,259.06,2.49999999]
[1732267385195,15.10939914,259.12,259.09,2.49999999]
[1732267385379,15.10939914,259.12,259.11,2.49999999]
[1732267385580,15.10939914,259.12,259.11,4.99999999]
[1732267386902,15.10939914,259.12,259.11,2.49999999]
[1732267387509,15.10939914,259.13,259.11,2.49999999]
[1732267388399,15.10939914,259.13,259.09,2.49999999]
[1732267388697,15.10939914,259.11,259.09,4.99999999]
[1732267391686,15.10939914,259.11,259.09,2.49999999]
[1732267391897,15.10939914,259.11,259.1,2.5]
[1732267392184,15.10939914,259.11,259.09,2.49999999]
[1732267392506,15.10939914,259.11,259.09,4.99999999]
[1732267392879,15.10939914,259.11,259.09,2.49999999]
[1732267393080,15.10939914,259.11,259.09,4.99999999]
[1732267393396,15.10939914,259.11,259.01,20.0]
[1732267393397,15.10939914,259.11,259.07,4.99999999]
[1732267393598,23.776884,259.21,259.07,4.99999999]
[1732267393599,15.10939914,259.09,259.07,4.99999999]
[1732267393801,15.10939914,259.09,259.07,2.5]
[1732267394177,15.10939914,259.09,259.05,4.99999999]
[1732267394376,15.10939914,259.06,259.05,4.99999999]
[1732267395493,15.10939914,259.06,259.05,2.49999999]
[1732267397403,15.10939914,259.06,259.05,4.99999999]
[1732267397600,15.10939914,259.06,259.05,2.49999999]
[1732267400592,9.65146448,259.07,259.05,2.49999999]
[1732267400795,9.65146448,259.07,259.05,4.99999999]
[1732267402103,9.65146448,259.07,259.05,2.49999999]
[1732267402407,9.65146448,259.07,259.06,2.5]
[1732267406221,9.65146448,259.11,259.09,2.49999999]
[1732267407819,9.65146448,259.11,259.07,4.99999999]
[1732267407994,9.65146448,259.09,259.07,4.99999999]
[1732267410509,9.65146448,259.09,259.07,2.5]
[1732267412210,9.65146448,259.09,259.07,4.99999999]
[1732267413521,23.776884,259.2,259.07,4.99999999]
[1732267413707,9.65146448,259.11,259.09,4.99999999]
[1732267414428,38.60585792,259.22,259.11,2.49999999]
[1732267414605,9.65146448,259.12,259.11,2.49999999]
[1732267415005,33.42834848,259.12,259.11,2.49999999]
[1732267416207,33.42834848,259.12,259.09,4.99999999]
[1732267417526,9.65146448,259.1,259.09,4.99999999]
[1732267418414,9.65146448,259.1,259.07,2.5]
[1732267418608,33.42834848,259.08,259.07,4.99999999]
[1732267419606,23.776884,259.08,259.07,4.99999999]
[1732267420828,23.776884,259.08,259.07,2.49999999]
[1732267421126,23.776884,259.08,259.07,4.99999999]
[1732267422307,23.776884,259.08,259.07,2.49999999]
[1732267422507,38.60585792,259.22,258.94,20.0]
[1732267422508,2.00102015,259.29,259.11,4.99999999]
[1732267422704,9.65146448,259.15,259.11,4.99999999]
[1732267422905,9.65146448,259.13,259.11,4.99999999]
[1732267424419,23.776884,259.12,259.11,2.5]
[1732267424735,23.776884,259.12,259.09,2.49999999]
[1732267424934,9.65146448,259.11,259.09,2.49999999]
[1732267425121,9.65146448,259.11,259.1,2.5]
[1732267426226,23.776884,259.1,259.08,2.5]
[1732267426418,23.776884,259.1,259.08,4.99999999]
[1732267427438,23.776884,259.1,259.08,2.5]
[1732267427618,23.776884,259.1,259.08,4.99999999]
[1732267428114,9.65146448,259.13,259.1,2.49999999]
[1732267428311,23.776884,259.12,259.11,2.5]
[1732267432642,23.776884,259.12,259.09,2.5]
[1732267432821,23.776884,259.12,259.08,2.49999999]
[1732267432822,23.776884,259.12,259.11,2.5]
[1732267433136,23.776884,259.12,259.11,4.99999999]
[1732267433331,23.776884,259.12,259.11,2.5]
[1732267433734,23.776884,259.12,259.11,4.99999999]
[1732267434834,23.776884,259.12,259.11,2.5]
[1732267435542,7.73901448,259.23,259.11,4.99999999]
[1732267435746,13.7383,259.24,259.16,4.99999999]
[1732267436038,9.65146448,259.19,259.16,4.99999999]
[1732267437121,23.776884,259.18,259.16,4.99999999]
[1732267437322,23.776884,259.18,259.17,2.5]
[1732267438925,9.65146448,259.21,259.19,4.99999999]
[1732267440639,23.776884,259.2,259.19,4.99999999]
[1732267441046,23.776884,259.2,259.19,2.5]
[1732267441732,23.776884,259.2,259.17,4.99999999]
[1732267441920,9.65146448,259.18,259.17,4.99999999]
[1732267442121,33.42834848,259.18,259.17,4.99999999]
[1732267442322,23.776884,259.18,259.17,4.99999999]
[1732267445345,9.65146448,259.2,259.17,4.99999999]
[1732267445547,23.776884,259.19,259.17,4.99999999]
[1732267445850,9.65146448,259.22,259.17,4.99999999]
[1732267445851,23.776884,259.21,259.17,4.99999999]
[1732267446223,23.776884,259.21,259.2,2.49999999]
[1732267449244,23.776884,259.21,259.17,2.5]
[1732267449426,9.65146448,259.18,259.17,2.5]
[1732267449628,33.42834848,259.18,259.17,2.5]
[1732267450065,23.776884,259.17,259.15,4.99999999]
[1732267450628,23.776884,259.17,259.12,2.5]
[1732267450629,23.776884,259.15,259.12,2.5]
[1732267450838,33.42834848,259.13,259.12,2.5]
[1732267451844,33.42834848,259.13,259.1,2.49999999]
[1732267452060,33.42834848,259.11,259.1,2.49999999]
[1732267453353,23.776884,259.1,259.09,2.5]
[1732267465040,9.65146448,259.11,259.09,2.5]
[1732267467366,33.42834848,259.11,259.1,2.49999999]
[1732267468648,23.776884,259.11,259.1,2.49999999]
[1732267468963,33.42834848,259.11,259.1,2.49999999]
[1732267470351,23.776884,259.1,259.09,2.5]